[Event "Titled Tuesday Blitz May 24 Late 2022"]
[White "Dubov, Daniil"]
[Black "Martinez Alcantara, Jose Eduardo"]
[WhiteFideId "24126055"]
[BlackFideId "3805662"]
[WhiteElo "2791"]
[BlackElo "2690"]
[Result "1/2-1/2"]
[Round "10"]
[TimeControl "180+1"]
[Date "2022.05.24"]
[WhiteClock "0:00:07"]
[BlackClock "0:00:37"]

1. e4 {[%clk 0:03:00]}  c5 {[%clk 0:02:58]} 2. Nc3 {[%clk 0:03:00]}  Nc6 {[%clk 0:02:58]} 3. Nge2 {[%clk 0:02:59]}  Nf6 {[%clk 0:02:39]} 4. g3 {[%clk 0:02:58]}  g6 {[%clk 0:02:37]} 5. Bg2 {[%clk 0:02:57]}  Bg7 {[%clk 0:02:37]} 6. O-O {[%clk 0:02:55]}  O-O {[%clk 0:02:38]} 7. Nd5 {[%clk 0:02:55]}  e6 {[%clk 0:02:33]} 8. Nxf6+ {[%clk 0:02:54]}  Bxf6 {[%clk 0:02:34]} 9. d3 {[%clk 0:02:34]}  d6 {[%clk 0:02:32]} 10. c3 {[%clk 0:02:28]}  Rb8 {[%clk 0:02:22]} 11. Bh6 {[%clk 0:02:25]}  Bg7 {[%clk 0:02:20]} 12. Qd2 {[%clk 0:02:22]}  e5 {[%clk 0:02:17]} 13. Bxg7 {[%clk 0:02:19]}  Kxg7 {[%clk 0:02:18]} 14. f4 {[%clk 0:02:18]}  f6 {[%clk 0:02:17]} 15. Rf2 {[%clk 0:02:05]}  Qe7 {[%clk 0:02:14]} 16. Raf1 {[%clk 0:02:03]}  Be6 {[%clk 0:02:13]} 17. f5 {[%clk 0:01:54]}  Bg8 {[%clk 0:02:06]} 18. h4 {[%clk 0:01:48]}  Rbd8 {[%clk 0:01:48]} 19. g4 {[%clk 0:01:43]}  gxf5 {[%clk 0:01:27]} 20. Ng3 {[%clk 0:01:37]}  Kh8 {[%clk 0:01:21]} 21. exf5 {[%clk 0:01:24]}  d5 {[%clk 0:01:19]} 22. g5 {[%clk 0:01:21]}  e4 {[%clk 0:01:20]} 23. dxe4 {[%clk 0:01:12]}  dxe4 {[%clk 0:01:19]} 24. Qf4 {[%clk 0:01:10]}  Ne5 {[%clk 0:01:18]} 25. gxf6 {[%clk 0:00:53]}  Rxf6 {[%clk 0:01:14]} 26. Nxe4 {[%clk 0:00:53]}  Nd3 {[%clk 0:01:13]} 27. Qg5 {[%clk 0:00:52]}  Nxf2 {[%clk 0:01:13]} 28. Nxf6 {[%clk 0:00:28]}  Nd3 {[%clk 0:01:01]} 29. Nxh7 {[%clk 0:00:25]}  Qxg5 {[%clk 0:01:00]} 30. Nxg5 {[%clk 0:00:24]}  Bxa2 {[%clk 0:00:55]} 31. f6 {[%clk 0:00:22]}  Ne5 {[%clk 0:00:55]} 32. Re1 {[%clk 0:00:19]}  Ng4 {[%clk 0:00:56]} 33. f7 {[%clk 0:00:17]}  Kg7 {[%clk 0:00:56]} 34. Re8 {[%clk 0:00:13]}  Rd1+ {[%clk 0:00:56]} 35. Bf1 {[%clk 0:00:13]}  Bxf7 {[%clk 0:00:50]} 36. Re7 {[%clk 0:00:14]}  Nh6 {[%clk 0:00:51]} 37. Rxb7 {[%clk 0:00:13]}  Kf6 {[%clk 0:00:48]} 38. Rxa7 {[%clk 0:00:11]}  Bc4 {[%clk 0:00:42]} 39. Ne4+ {[%clk 0:00:11]}  Ke5 {[%clk 0:00:40]} 40. Nd2 {[%clk 0:00:09]}  Rxd2 {[%clk 0:00:39]} 41. Bxc4 {[%clk 0:00:08]}  Rxb2 {[%clk 0:00:38]} 42. Rd7 {[%clk 0:00:07]}  Kf4 {[%clk 0:00:32]} 43. Rd5 {[%clk 0:00:05]}  Ng4 {[%clk 0:00:32]} 44. Bf1 {[%clk 0:00:02]}  Rb1 {[%clk 0:00:27]} 45. Rd8 {[%clk 0:00:01]}  Rc1 {[%clk 0:00:25]} 46. h5 {[%clk 0:00:01]}  Kg3 {[%clk 0:00:26]} 47. Rf8 {[%clk 0:00:01]}  Rxc3 {[%clk 0:00:25]} 48. Rg8 {[%clk 0:00:01]}  Kf4 {[%clk 0:00:24]} 49. Rf8+ {[%clk 0:00:01]}  Kg5 {[%clk 0:00:24]} 50. Rg8+ {[%clk 0:00:02]}  Kh4 {[%clk 0:00:22]} 51. Rf8 {[%clk 0:00:01]}  Re3 {[%clk 0:00:20]} 52. Kh1 {[%clk 0:00:02]}  Kxh5 {[%clk 0:00:19]} 53. Kg1 {[%clk 0:00:02]}  Kh4 {[%clk 0:00:20]} 54. Rf5 {[%clk 0:00:02]}  Rc3 {[%clk 0:00:19]} 55. Rf4 {[%clk 0:00:02]}  Kg3 {[%clk 0:00:19]} 56. Rc4 {[%clk 0:00:03]}  Rxc4 {[%clk 0:00:15]} 57. Bxc4 {[%clk 0:00:04]}  Ne3 {[%clk 0:00:16]} 58. Be2 {[%clk 0:00:04]}  Nd5 {[%clk 0:00:15]} 59. Kf1 {[%clk 0:00:04]}  Nf4 {[%clk 0:00:16]} 60. Ke1 {[%clk 0:00:03]}  Nd5 {[%clk 0:00:14]} 61. Kd2 {[%clk 0:00:03]}  Kf4 {[%clk 0:00:15]} 62. Bc4 {[%clk 0:00:03]}  Nb6 {[%clk 0:00:15]} 63. Bg8 {[%clk 0:00:04]}  Ke5 {[%clk 0:00:16]} 64. Kd3 {[%clk 0:00:04]}  Nc8 {[%clk 0:00:16]} 65. Kc3 {[%clk 0:00:04]}  Ne7 {[%clk 0:00:16]} 66. Bf7 {[%clk 0:00:03]}  Kd6 {[%clk 0:00:17]} 67. Bb3 {[%clk 0:00:02]}  Nc6 {[%clk 0:00:18]} 68. Ba2 {[%clk 0:00:02]}  Ne5 {[%clk 0:00:19]} 69. Bc4 {[%clk 0:00:02]}  Kc6 {[%clk 0:00:20]} 70. Bb3 {[%clk 0:00:03]}  Kb5 {[%clk 0:00:21]} 71. Bd5 {[%clk 0:00:03]}  Nd7 {[%clk 0:00:21]} 72. Bc4+ {[%clk 0:00:03]}  Ka5 {[%clk 0:00:22]} 73. Be6 {[%clk 0:00:04]}  Nb6 {[%clk 0:00:22]} 74. Bf7 {[%clk 0:00:04]}  Kb5 {[%clk 0:00:23]} 75. Be8+ {[%clk 0:00:04]}  Ka5 {[%clk 0:00:24]} 76. Bc6 {[%clk 0:00:05]}  Nc8 {[%clk 0:00:23]} 77. Kc4 {[%clk 0:00:04]}  Kb6 {[%clk 0:00:24]} 78. Bg2 {[%clk 0:00:04]}  Nd6+ {[%clk 0:00:24]} 79. Kc3 {[%clk 0:00:05]}  Nf5 {[%clk 0:00:25]} 80. Bf1 {[%clk 0:00:05]}  Ne3 {[%clk 0:00:25]} 81. Bc4 {[%clk 0:00:05]}  Kc6 {[%clk 0:00:24]} 82. Kd3 {[%clk 0:00:06]}  Ng4 {[%clk 0:00:23]} 83. Be6 {[%clk 0:00:06]}  Nf6 {[%clk 0:00:23]} 84. Kc3 {[%clk 0:00:06]}  Ne4+ {[%clk 0:00:23]} 85. Kc2 {[%clk 0:00:05]}  Ng5 {[%clk 0:00:24]} 86. Bg8 {[%clk 0:00:05]}  Nf3 {[%clk 0:00:24]} 87. Ba2 {[%clk 0:00:05]}  Kb5 {[%clk 0:00:24]} 88. Bg8 {[%clk 0:00:04]}  Ne5 {[%clk 0:00:24]} 89. Be6 {[%clk 0:00:04]}  Kb4 {[%clk 0:00:25]} 90. Bg8 {[%clk 0:00:04]}  Nc6 {[%clk 0:00:26]} 91. Bf7 {[%clk 0:00:04]}  Nd4+ {[%clk 0:00:27]} 92. Kb2 {[%clk 0:00:04]}  Nc6 {[%clk 0:00:28]} 93. Bg8 {[%clk 0:00:04]}  Ne5 {[%clk 0:00:29]} 94. Be6 {[%clk 0:00:04]}  Nc4+ {[%clk 0:00:29]} 95. Bxc4 {[%clk 0:00:04]}  Kxc4 {[%clk 0:00:30]} 96. Kc2 {[%clk 0:00:04]}  Kd4 {[%clk 0:00:31]} 97. Kd2 {[%clk 0:00:04]}  Kc4 {[%clk 0:00:32]} 98. Kc2 {[%clk 0:00:05]}  Kb4 {[%clk 0:00:32]} 99. Kb2 {[%clk 0:00:05]}  c4 {[%clk 0:00:33]} 100. Kc2 {[%clk 0:00:05]}  c3 {[%clk 0:00:34]} 101. Kc1 {[%clk 0:00:06]}  Kc4 {[%clk 0:00:35]} 102. Kc2 {[%clk 0:00:06]}  Kb4 {[%clk 0:00:35]} 103. Kc1 {[%clk 0:00:06]}  Kb3 {[%clk 0:00:36]} 104. Kb1 {[%clk 0:00:06]}  c2+ {[%clk 0:00:36]} 105. Kc1 {[%clk 0:00:07]}  Kc3 {[%clk 0:00:37]} 1/2-1/2


[Site "https://www.chess.com"]

[Event "Titled Tuesday Blitz May 24 Late 2022"]
[White "Ezat, Mohamed"]
[Black "Riehle, Marco"]
[WhiteFideId "10600906"]
[BlackFideId "12904392"]
[WhiteElo "2386"]
[BlackElo "2462"]
[Result "0-1"]
[Round "10"]
[TimeControl "180+1"]
[Date "2022.05.24"]
[WhiteClock "0:00:32"]
[BlackClock "0:01:59"]

1. d4 {[%clk 0:03:00]}  d5 {[%clk 0:02:59]} 2. c4 {[%clk 0:03:00]}  e6 {[%clk 0:03:00]} 3. Nc3 {[%clk 0:03:00]}  c5 {[%clk 0:03:00]} 4. cxd5 {[%clk 0:03:00]}  cxd4 {[%clk 0:03:00]} 5. Qxd4 {[%clk 0:02:59]}  Nc6 {[%clk 0:02:59]} 6. Qd1 {[%clk 0:02:58]}  exd5 {[%clk 0:02:59]} 7. e3 {[%clk 0:02:56]}  Nf6 {[%clk 0:02:58]} 8. Nf3 {[%clk 0:02:56]}  Bd6 {[%clk 0:02:58]} 9. Be2 {[%clk 0:02:56]}  O-O {[%clk 0:02:58]} 10. O-O {[%clk 0:02:56]}  Bg4 {[%clk 0:02:58]} 11. h3 {[%clk 0:02:55]}  Bh5 {[%clk 0:02:58]} 12. b3 {[%clk 0:02:52]}  Rc8 {[%clk 0:02:57]} 13. Bb2 {[%clk 0:02:52]}  Bb8 {[%clk 0:02:57]} 14. Nb5 {[%clk 0:02:51]}  a6 {[%clk 0:02:57]} 15. Nbd4 {[%clk 0:02:51]}  Qc7 {[%clk 0:02:55]} 16. Rc1 {[%clk 0:02:48]}  Rfd8 {[%clk 0:02:51]} 17. g3 {[%clk 0:02:39]}  Ne4 {[%clk 0:02:48]} 18. Nxc6 {[%clk 0:02:36]}  bxc6 {[%clk 0:02:44]} 19. Be5 {[%clk 0:02:35]}  Qb6 {[%clk 0:02:39]} 20. Bxb8 {[%clk 0:02:34]}  Rxb8 {[%clk 0:02:40]} 21. Nd4 {[%clk 0:02:32]}  Bxe2 {[%clk 0:02:38]} 22. Qxe2 {[%clk 0:02:31]}  c5 {[%clk 0:02:37]} 23. Nf5 {[%clk 0:02:31]}  Qf6 {[%clk 0:02:29]} 24. Nh4 {[%clk 0:02:27]}  Nc3 {[%clk 0:02:22]} 25. Qg4 {[%clk 0:02:23]}  d4 {[%clk 0:02:16]} 26. exd4 {[%clk 0:02:20]}  cxd4 {[%clk 0:02:17]} 27. Nf5 {[%clk 0:02:11]}  d3 {[%clk 0:02:12]} 28. Nh6+ {[%clk 0:00:46]}  Kf8 {[%clk 0:02:12]} 29. Nxf7 {[%clk 0:00:45]}  Ne2+ {[%clk 0:02:09]} 30. Kh2 {[%clk 0:00:42]}  Qxf7 {[%clk 0:02:05]} 31. Rc6 {[%clk 0:00:40]}  Kg8 {[%clk 0:02:01]} 32. Rxa6 {[%clk 0:00:38]}  Rbc8 {[%clk 0:02:01]} 33. Rd6 {[%clk 0:00:35]}  Rf8 {[%clk 0:02:00]} 34. Rxd3 {[%clk 0:00:33]}  Qxf2+ {[%clk 0:01:59]} 35. Rxf2 {[%clk 0:00:31]}  Rxf2+ {[%clk 0:01:59]} 36. Kh1 {[%clk 0:00:32]}  Rc1+ {[%clk 0:01:58]} 37. Rd1 {[%clk 0:00:32]}  Rxd1# {[%clk 0:01:59]} 0-1


[Site "https://www.chess.com"]

[Event "Titled Tuesday Blitz May 24 Late 2022"]
[White "Griffith, Kyron"]
[Black "Kamsky, Gata"]
[WhiteFideId "2046318"]
[BlackFideId "2000024"]
[WhiteElo "2232"]
[BlackElo "2645"]
[Result "0-1"]
[Round "10"]
[TimeControl "180+1"]
[Date "2022.05.24"]
[WhiteClock "0:00:03"]
[BlackClock "0:00:23"]

1. e4 {[%clk 0:03:00]}  e5 {[%clk 0:02:34]} 2. Nf3 {[%clk 0:03:01]}  Nc6 {[%clk 0:02:33]} 3. Bb5 {[%clk 0:03:01]}  a6 {[%clk 0:02:33]} 4. Ba4 {[%clk 0:03:01]}  Nf6 {[%clk 0:02:33]} 5. O-O {[%clk 0:03:02]}  Be7 {[%clk 0:02:33]} 6. d3 {[%clk 0:03:01]}  b5 {[%clk 0:02:30]} 7. Bb3 {[%clk 0:03:02]}  d6 {[%clk 0:02:31]} 8. a3 {[%clk 0:03:01]}  O-O {[%clk 0:02:28]} 9. Nc3 {[%clk 0:03:01]}  Be6 {[%clk 0:02:26]} 10. Nd5 {[%clk 0:03:00]}  Na5 {[%clk 0:02:03]} 11. Nxf6+ {[%clk 0:02:53]}  Bxf6 {[%clk 0:02:02]} 12. Bxe6 {[%clk 0:02:54]}  fxe6 {[%clk 0:02:02]} 13. b4 {[%clk 0:02:53]}  Nc6 {[%clk 0:02:00]} 14. c3 {[%clk 0:02:52]}  Kh8 {[%clk 0:01:52]} 15. a4 {[%clk 0:02:47]}  Qd7 {[%clk 0:01:47]} 16. Be3 {[%clk 0:02:42]}  Be7 {[%clk 0:01:39]} 17. Qb3 {[%clk 0:02:32]}  d5 {[%clk 0:01:36]} 18. Rfe1 {[%clk 0:01:57]}  h6 {[%clk 0:01:33]} 19. exd5 {[%clk 0:01:52]}  exd5 {[%clk 0:01:29]} 20. axb5 {[%clk 0:01:51]}  axb5 {[%clk 0:01:28]} 21. Rxa8 {[%clk 0:01:46]}  Rxa8 {[%clk 0:01:28]} 22. Bd2 {[%clk 0:01:42]}  Bf6 {[%clk 0:01:24]} 23. Be3 {[%clk 0:01:37]}  Re8 {[%clk 0:01:19]} 24. Bc5 {[%clk 0:01:36]}  e4 {[%clk 0:01:18]} 25. dxe4 {[%clk 0:01:36]}  dxe4 {[%clk 0:01:18]} 26. Nd4 {[%clk 0:01:30]}  Nxd4 {[%clk 0:01:16]} 27. cxd4 {[%clk 0:01:27]}  c6 {[%clk 0:01:15]} 28. Qe3 {[%clk 0:01:06]}  Bg5 {[%clk 0:01:12]} 29. Qg3 {[%clk 0:01:05]}  Qd5 {[%clk 0:01:05]} 30. h3 {[%clk 0:01:01]}  Re6 {[%clk 0:00:54]} 31. Qg4 {[%clk 0:00:55]}  Kh7 {[%clk 0:00:50]} 32. Kh1 {[%clk 0:00:50]}  Bd8 {[%clk 0:00:43]} 33. Qf4 {[%clk 0:00:35]}  Bg5 {[%clk 0:00:38]} 34. Qg4 {[%clk 0:00:35]}  e3 {[%clk 0:00:35]} 35. fxe3 {[%clk 0:00:34]}  Rxe3 {[%clk 0:00:32]} 36. Rxe3 {[%clk 0:00:30]}  Bxe3 {[%clk 0:00:33]} 37. Kh2 {[%clk 0:00:26]}  h5 {[%clk 0:00:31]} 38. Qf3 {[%clk 0:00:21]}  Qxf3 {[%clk 0:00:30]} 39. gxf3 {[%clk 0:00:22]}  Bf4+ {[%clk 0:00:30]} 40. Kg2 {[%clk 0:00:21]}  Kg6 {[%clk 0:00:31]} 41. Kf2 {[%clk 0:00:17]}  Kf5 {[%clk 0:00:30]} 42. Ke2 {[%clk 0:00:17]}  Bg5 {[%clk 0:00:28]} 43. Bd6 {[%clk 0:00:15]}  Ke6 {[%clk 0:00:26]} 44. Bc5 {[%clk 0:00:15]}  Bf6 {[%clk 0:00:25]} 45. Ke3 {[%clk 0:00:14]}  Kf5 {[%clk 0:00:24]} 46. Bd6 {[%clk 0:00:13]}  Bg5+ {[%clk 0:00:24]} 47. Kd3 {[%clk 0:00:11]}  g6 {[%clk 0:00:25]} 48. Bc7 {[%clk 0:00:10]}  Be7 {[%clk 0:00:24]} 49. Kc3 {[%clk 0:00:08]}  Ke6 {[%clk 0:00:23]} 50. Be5 {[%clk 0:00:06]}  Kd5 {[%clk 0:00:23]} 51. Bg7 {[%clk 0:00:06]}  Bd6 {[%clk 0:00:23]} 52. Bh8 {[%clk 0:00:06]}  Ke6 {[%clk 0:00:23]} 53. Bg7 {[%clk 0:00:06]}  Kf5 {[%clk 0:00:24]} 54. Bh6 {[%clk 0:00:05]}  g5 {[%clk 0:00:23]} 55. Kb3 {[%clk 0:00:03]}  Kg6 {[%clk 0:00:23]} 0-1


[Site "https://www.chess.com"]

[Event "Titled Tuesday Blitz May 24 Late 2022"]
[White "Grischuk, Alexander"]
[Black "Terry, Renato"]
[WhiteFideId "4126025"]
[BlackFideId "3803457"]
[WhiteElo "2762"]
[BlackElo "2577"]
[Result "1-0"]
[Round "10"]
[TimeControl "180+1"]
[Date "2022.05.24"]
[WhiteClock "0:00:05"]
[BlackClock "0:00:03"]

1. d4 {[%clk 0:03:00]}  d5 {[%clk 0:02:56]} 2. c4 {[%clk 0:03:00]}  dxc4 {[%clk 0:02:57]} 3. Nf3 {[%clk 0:03:00]}  Nf6 {[%clk 0:02:57]} 4. e3 {[%clk 0:03:00]}  e6 {[%clk 0:02:58]} 5. Bxc4 {[%clk 0:03:00]}  a6 {[%clk 0:02:59]} 6. O-O {[%clk 0:03:00]}  c5 {[%clk 0:02:59]} 7. Nbd2 {[%clk 0:02:57]}  Nc6 {[%clk 0:02:55]} 8. dxc5 {[%clk 0:02:53]}  Bxc5 {[%clk 0:02:55]} 9. a3 {[%clk 0:02:54]}  O-O {[%clk 0:02:47]} 10. b4 {[%clk 0:02:54]}  Bd6 {[%clk 0:02:39]} 11. Bb2 {[%clk 0:02:54]}  Qe7 {[%clk 0:02:40]} 12. Qc2 {[%clk 0:02:49]}  Bd7 {[%clk 0:02:31]} 13. Bxf6 {[%clk 0:02:23]}  gxf6 {[%clk 0:02:28]} 14. Ne4 {[%clk 0:02:23]}  Bc7 {[%clk 0:02:22]} 15. Nc5 {[%clk 0:02:23]}  Bc8 {[%clk 0:02:19]} 16. Bd3 {[%clk 0:02:10]}  f5 {[%clk 0:02:05]} 17. Rac1 {[%clk 0:02:09]}  Ne5 {[%clk 0:01:58]} 18. Be2 {[%clk 0:02:08]}  Bd6 {[%clk 0:01:53]} 19. Nxe5 {[%clk 0:02:03]}  Bxe5 {[%clk 0:01:53]} 20. Bf3 {[%clk 0:02:03]}  Rb8 {[%clk 0:01:52]} 21. Rfd1 {[%clk 0:02:02]}  Rd8 {[%clk 0:01:41]} 22. Rxd8+ {[%clk 0:01:59]}  Qxd8 {[%clk 0:01:42]} 23. g3 {[%clk 0:01:56]}  b6 {[%clk 0:01:31]} 24. Nd3 {[%clk 0:01:56]}  Bd6 {[%clk 0:01:32]} 25. Qc4 {[%clk 0:01:50]}  a5 {[%clk 0:01:19]} 26. Qd4 {[%clk 0:01:43]}  Ba6 {[%clk 0:01:07]} 27. Ne5 {[%clk 0:01:31]}  Bb5 {[%clk 0:01:05]} 28. Rd1 {[%clk 0:01:15]}  Bc7 {[%clk 0:00:59]} 29. Nd7 {[%clk 0:01:01]}  Qxd7 {[%clk 0:00:48]} 30. Qxd7 {[%clk 0:01:02]}  Bxd7 {[%clk 0:00:48]} 31. Rxd7 {[%clk 0:01:03]}  Be5 {[%clk 0:00:49]} 32. Bh5 {[%clk 0:01:03]}  Rf8 {[%clk 0:00:49]} 33. Rb7 {[%clk 0:00:42]}  axb4 {[%clk 0:00:40]} 34. axb4 {[%clk 0:00:43]}  Kg7 {[%clk 0:00:40]} 35. Kg2 {[%clk 0:00:44]}  Kf6 {[%clk 0:00:29]} 36. h3 {[%clk 0:00:42]}  Kg7 {[%clk 0:00:29]} 37. g4 {[%clk 0:00:39]}  fxg4 {[%clk 0:00:27]} 38. hxg4 {[%clk 0:00:40]}  h6 {[%clk 0:00:28]} 39. f4 {[%clk 0:00:39]}  Bf6 {[%clk 0:00:19]} 40. Rxb6 {[%clk 0:00:37]}  Re8 {[%clk 0:00:20]} 41. Kf3 {[%clk 0:00:25]}  e5 {[%clk 0:00:19]} 42. b5 {[%clk 0:00:17]}  exf4 {[%clk 0:00:16]} 43. exf4 {[%clk 0:00:18]}  Re7 {[%clk 0:00:14]} 44. Rd6 {[%clk 0:00:18]}  Rb7 {[%clk 0:00:12]} 45. Rd5 {[%clk 0:00:15]}  Be7 {[%clk 0:00:08]} 46. Ke4 {[%clk 0:00:15]}  Bb4 {[%clk 0:00:08]} 47. Rf5 {[%clk 0:00:13]}  Ba5 {[%clk 0:00:07]} 48. Kd4 {[%clk 0:00:13]}  Rd7+ {[%clk 0:00:07]} 49. Kc5 {[%clk 0:00:12]}  Rc7+ {[%clk 0:00:08]} 50. Kd6 {[%clk 0:00:12]}  Bb6 {[%clk 0:00:08]} 51. Rd5 {[%clk 0:00:08]}  Ba5 {[%clk 0:00:08]} 52. Rc5 {[%clk 0:00:05]}  Rb7 {[%clk 0:00:03]} 53. Kc6 {[%clk 0:00:04]}  Rb6+ {[%clk 0:00:04]} 54. Kd5 {[%clk 0:00:04]}  Rf6 {[%clk 0:00:03]} 55. f5 {[%clk 0:00:04]}  Rb6 {[%clk 0:00:03]} 56. Kc4 {[%clk 0:00:04]}  Rb7 {[%clk 0:00:03]} 57. Rc6 {[%clk 0:00:04]}  Bb6 {[%clk 0:00:03]} 58. f6+ {[%clk 0:00:04]}  Kh7 {[%clk 0:00:03]} 59. Bxf7 {[%clk 0:00:04]}  Rxf7 {[%clk 0:00:01]} 60. Rxb6 {[%clk 0:00:04]}  Kg6 {[%clk 0:00:02]} 61. Rc6 {[%clk 0:00:04]}  Kg5 {[%clk 0:00:03]} 62. b6 {[%clk 0:00:04]}  Kxg4 {[%clk 0:00:03]} 63. Kb5 {[%clk 0:00:04]}  h5 {[%clk 0:00:04]} 64. Ka6 {[%clk 0:00:04]}  h4 {[%clk 0:00:03]} 65. b7 {[%clk 0:00:05]}  Rf8 {[%clk 0:00:04]} 66. Ka7 {[%clk 0:00:05]}  h3 {[%clk 0:00:03]} 67. b8=Q {[%clk 0:00:05]} 1-0


[Site "https://www.chess.com"]

[Event "Titled Tuesday Blitz May 24 Late 2022"]
[White "Ibarra Jerez, Jose Carlos"]
[Black "Ronka, Erik"]
[WhiteFideId "2226332"]
[BlackFideId "505080"]
[WhiteElo "2626"]
[BlackElo "2264"]
[Result "1-0"]
[Round "10"]
[TimeControl "180+1"]
[Date "2022.05.24"]
[WhiteClock "0:00:26"]
[BlackClock "0:00:08"]

1. e4 {[%clk 0:02:55]}  c5 {[%clk 0:03:00]} 2. Nf3 {[%clk 0:02:54]}  e6 {[%clk 0:03:00]} 3. g3 {[%clk 0:02:53]}  Nc6 {[%clk 0:02:55]} 4. Bg2 {[%clk 0:02:53]}  d6 {[%clk 0:02:56]} 5. O-O {[%clk 0:02:53]}  Nf6 {[%clk 0:02:56]} 6. Qe2 {[%clk 0:02:52]}  Be7 {[%clk 0:02:56]} 7. c3 {[%clk 0:02:52]}  O-O {[%clk 0:02:46]} 8. d4 {[%clk 0:02:52]}  d5 {[%clk 0:02:46]} 9. e5 {[%clk 0:02:50]}  Nd7 {[%clk 0:02:46]} 10. Rd1 {[%clk 0:02:48]}  b6 {[%clk 0:02:32]} 11. h4 {[%clk 0:02:45]}  a5 {[%clk 0:02:32]} 12. Na3 {[%clk 0:02:37]}  Ba6 {[%clk 0:02:30]} 13. Nb5 {[%clk 0:02:34]}  a4 {[%clk 0:02:29]} 14. c4 {[%clk 0:02:27]}  Bxb5 {[%clk 0:01:52]} 15. cxb5 {[%clk 0:02:25]}  Na7 {[%clk 0:01:35]} 16. h5 {[%clk 0:02:17]}  c4 {[%clk 0:01:32]} 17. a3 {[%clk 0:01:33]}  Nxb5 {[%clk 0:01:31]} 18. Nh2 {[%clk 0:01:31]}  Kh8 {[%clk 0:00:56]} 19. f4 {[%clk 0:01:20]}  f5 {[%clk 0:00:34]} 20. g4 {[%clk 0:01:14]}  Nc7 {[%clk 0:00:26]} 21. Bd2 {[%clk 0:01:09]}  b5 {[%clk 0:00:26]} 22. Bh3 {[%clk 0:01:06]}  Rb8 {[%clk 0:00:24]} 23. Qe1 {[%clk 0:00:49]}  Rf7 {[%clk 0:00:20]} 24. gxf5 {[%clk 0:00:49]}  Rxf5 {[%clk 0:00:18]} 25. Bxf5 {[%clk 0:00:47]}  exf5 {[%clk 0:00:19]} 26. Ba5 {[%clk 0:00:45]}  Nb6 {[%clk 0:00:17]} 27. e6 {[%clk 0:00:41]}  Bf6 {[%clk 0:00:14]} 28. Qe3 {[%clk 0:00:38]}  Qd6 {[%clk 0:00:14]} 29. Re1 {[%clk 0:00:37]}  Re8 {[%clk 0:00:14]} 30. Bb4 {[%clk 0:00:35]}  Qc6 {[%clk 0:00:14]} 31. e7 {[%clk 0:00:35]}  Nc8 {[%clk 0:00:13]} 32. Nf3 {[%clk 0:00:33]}  h6 {[%clk 0:00:12]} 33. Ne5 {[%clk 0:00:33]}  Qb7 {[%clk 0:00:12]} 34. Ng6+ {[%clk 0:00:29]}  Kg8 {[%clk 0:00:12]} 35. Qh3 {[%clk 0:00:30]}  Na6 {[%clk 0:00:10]} 36. Qxf5 {[%clk 0:00:27]}  Nxb4 {[%clk 0:00:10]} 37. axb4 {[%clk 0:00:28]}  Qc6 {[%clk 0:00:09]} 38. Re6 {[%clk 0:00:26]}  Qd7 {[%clk 0:00:09]} 39. Rxf6 {[%clk 0:00:25]}  Qxf5 {[%clk 0:00:08]} 40. Rxf5 {[%clk 0:00:26]}  Nd6 {[%clk 0:00:08]} 41. Rf8+ {[%clk 0:00:26]} 1-0


[Site "https://www.chess.com"]

[Event "Titled Tuesday Blitz May 24 Late 2022"]
[White "Keymer, Vincent"]
[Black "Rychagov, Andrey"]
[WhiteFideId "12940690"]
[BlackFideId "4119932"]
[WhiteElo "2548"]
[BlackElo "2500"]
[Result "1-0"]
[Round "10"]
[TimeControl "180+1"]
[Date "2022.05.24"]
[WhiteClock "0:00:44"]
[BlackClock "0:00:25"]

1. Nf3 {[%clk 0:03:00]}  d5 {[%clk 0:02:59]} 2. e3 {[%clk 0:03:01]}  Nf6 {[%clk 0:02:57]} 3. c4 {[%clk 0:03:01]}  e6 {[%clk 0:02:57]} 4. Nc3 {[%clk 0:03:01]}  Be7 {[%clk 0:02:58]} 5. b3 {[%clk 0:03:02]}  O-O {[%clk 0:02:58]} 6. Bb2 {[%clk 0:03:02]}  b6 {[%clk 0:02:58]} 7. cxd5 {[%clk 0:03:02]}  Nxd5 {[%clk 0:02:55]} 8. Nxd5 {[%clk 0:03:03]}  exd5 {[%clk 0:02:55]} 9. Be2 {[%clk 0:02:51]}  Be6 {[%clk 0:02:54]} 10. O-O {[%clk 0:02:47]}  c5 {[%clk 0:02:53]} 11. d4 {[%clk 0:02:44]}  Nd7 {[%clk 0:02:53]} 12. Rc1 {[%clk 0:02:44]}  Bf6 {[%clk 0:02:45]} 13. h3 {[%clk 0:02:36]}  Qe7 {[%clk 0:02:39]} 14. Qd2 {[%clk 0:02:30]}  Rfc8 {[%clk 0:02:35]} 15. Ba6 {[%clk 0:02:19]}  Rc7 {[%clk 0:02:35]} 16. Rfe1 {[%clk 0:02:14]}  Nb8 {[%clk 0:02:29]} 17. Bd3 {[%clk 0:02:12]}  a5 {[%clk 0:02:01]} 18. e4 {[%clk 0:02:07]}  Qd8 {[%clk 0:02:00]} 19. dxc5 {[%clk 0:01:35]}  Bxb2 {[%clk 0:01:40]} 20. Qxb2 {[%clk 0:01:35]}  Rxc5 {[%clk 0:01:36]} 21. Rxc5 {[%clk 0:01:15]}  bxc5 {[%clk 0:01:35]} 22. exd5 {[%clk 0:01:15]}  Bxd5 {[%clk 0:01:12]} 23. Rd1 {[%clk 0:01:09]}  Ra7 {[%clk 0:00:27]} 24. Bc4 {[%clk 0:00:44]}  Rd7 {[%clk 0:00:26]} 25. Ne5 {[%clk 0:00:44]}  Rd6 {[%clk 0:00:25]} 26. Qd2 {[%clk 0:00:44]} 1-0


[Site "https://www.chess.com"]

[Event "Titled Tuesday Blitz May 24 Late 2022"]
[White "Kobalia, Mikhail"]
[Black "Demchenko, Anton"]
[WhiteFideId "4119150"]
[BlackFideId "4160258"]
[WhiteElo "2667"]
[BlackElo "2539"]
[Result "0-1"]
[Round "10"]
[TimeControl "180+1"]
[Date "2022.05.24"]
[WhiteClock "0:00:47"]
[BlackClock "0:02:11"]

1. e4 {[%clk 0:02:55]}  e5 {[%clk 0:02:59]} 2. Nf3 {[%clk 0:02:55]}  Nc6 {[%clk 0:03:00]} 3. Bb5 {[%clk 0:02:55]}  a6 {[%clk 0:03:00]} 4. Ba4 {[%clk 0:02:55]}  Nge7 {[%clk 0:03:01]} 5. c3 {[%clk 0:02:51]}  Ng6 {[%clk 0:03:01]} 6. d4 {[%clk 0:02:51]}  exd4 {[%clk 0:03:02]} 7. cxd4 {[%clk 0:02:51]}  Bb4+ {[%clk 0:03:01]} 8. Bd2 {[%clk 0:02:50]}  O-O {[%clk 0:02:59]} 9. O-O {[%clk 0:02:48]}  Bxd2 {[%clk 0:02:43]} 10. Nbxd2 {[%clk 0:02:49]}  d5 {[%clk 0:02:44]} 11. Bxc6 {[%clk 0:02:34]}  bxc6 {[%clk 0:02:45]} 12. e5 {[%clk 0:02:35]}  c5 {[%clk 0:02:39]} 13. dxc5 {[%clk 0:02:31]}  f6 {[%clk 0:02:39]} 14. exf6 {[%clk 0:02:24]}  Qxf6 {[%clk 0:02:39]} 15. Nb3 {[%clk 0:02:24]}  Nf4 {[%clk 0:02:39]} 16. Nbd4 {[%clk 0:02:13]}  Bh3 {[%clk 0:02:34]} 17. Ne1 {[%clk 0:01:46]}  Rae8 {[%clk 0:02:18]} 18. gxh3 {[%clk 0:01:01]}  Qg6+ {[%clk 0:02:16]} 19. Kh1 {[%clk 0:00:57]}  Rxe1 {[%clk 0:02:16]} 20. Qg4 {[%clk 0:00:57]}  Qe4+ {[%clk 0:02:16]} 21. Nf3 {[%clk 0:00:47]}  Rxa1 {[%clk 0:02:11]} 22. Rxa1 {[%clk 0:00:47]}  h5 {[%clk 0:02:11]} 0-1


[Site "https://www.chess.com"]